Cogmind - Beta 10.2 @@@ ROGUE MODE // 2020.11.29 @ 22:52:40 // Halloween2020/ForbiddenLore Player: CrossedViper Result: Destroyed by 8R-AWN with 8R-AWN's Boregun Performance ------------- Evolutions (0) 0 Regions Visited (3) 600 Robots Destroyed (23) 115 Value Destroyed (402) 402 Prototype IDs (23) 460 Alien Tech Used (0) 0 Bonus (-94) -94 TOTAL SCORE: 1483 Bonus ------- Aligned with FarCom 300 Friendly Fire -394 Cogmind --------- Core Integrity 0/250 Matter 290/300 Energy 86/100 System Corruption 1% Temperature Cool (0) Movement Walking (120) Location -10/Exiles Parts ------- > --- POWER (1) -------- (None) > --- PROPULSION (2) --- Carbon-fiber Leg Carbon-fiber Leg > --- UTILITY (2) ------ Large Storage Unit > --- WEAPON (2) ------- Makeshift Hammer Mining Claw > --- INVENTORY (10) --- Light Angular Momentum Engine Light Armor Plating Light Armor Plating Assault Rifle Plasma Cutter Heavy Hammer Heavy Hammer Peak State ------------ > --- POWER ------------ Ion Engine > --- PROPULSION ------- Aluminum Leg Carbon-fiber Leg > --- UTILITY ---------- Large Storage Unit Light Armor Plating > --- WEAPON ----------- Heavy Hammer Makeshift Hammer > --- INVENTORY -------- Light Angular Momentum Engine Carbon-fiber Leg Assault Rifle Plasma Cutter Heavy Hammer [Rating: 14] Favorites ----------- Power Ion Engine Engine Ion Engine Propulsion Aluminum Leg Treads Light Treads Leg Aluminum Leg Utility Large Storage Unit Storage Large Storage Unit Protection Light Armor Plating Weapon Heavy Hammer Ballistic Gun Assault Rifle Impact Weapon Heavy Hammer Slashing Weapon Mining Claw Build | -11 -10 -10 -10 ------- Run | Scr Mat Min Exi Slots Evolved . | . . . . Power . | . . . . Propulsion . | . . . . Utility . | . . . . Weapon . | . . . . Parts Attached 16 | . 10 5 1 Power 2 | . 2 . . Engine 2 | . 2 . . Core . | . . . . Reactor . | . . . . Propulsion 7 | . 4 2 1 Treads 2 | . 2 . . Leg 5 | . 2 2 1 Wheel . | . . . . Hover . | . . . . Flight . | . . . . Utility 2 | . 1 1 . Device . | . . . . Storage 1 | . 1 . . Processor . | . . . . Hackware . | . . . . Protection 1 | . . 1 . Artifact . | . . . . Weapon 5 | . 3 2 . Energy Gun . | . . . . Energy Cannon . | . . . . Ballistic Gun 2 | . 2 . . Ballistic Cannon . | . . . . Launcher . | . . . . Special Weapon . | . . . . Impact Weapon 2 | . 1 1 . Slashing Weapon 1 | . . 1 . Piercing Weapon . | . . . . Special Melee Weapon . | . . . . Unidentified Prototypes . | . . . . Parts Lost 7 | . 3 1 3 Power 2 | . 1 . 1 Propulsion 3 | . 1 1 1 Utility 1 | . . . 1 Weapon 1 | . 1 . . Highest Loss Streak 3 | . 2 1 3 Average Slot Usage (%) 87 | . 84 87 98 Engine 13 | . 13 14 13 Treads 5 | . 10 . . Leg 22 | . 17 27 28 Storage 14 | . 14 14 14 Protection 2 | . . 2 13 Ballistic Gun 10 | . 16 5 . Impact Weapon 14 | . 11 20 14 Slashing Weapon 2 | . . 1 14 Naked Turns . | . . . . Heaviest Build 30 | 12 26 30 29 Greatest Support 40 | 20 40 25 30 Greatest Overweight (x) 2 | . 1 2 1 Average Overweight (x) . | . . 1 . Largest Inventory Capacity 12 | . 12 10 10 Average Capacity 8 | . 6 10 10 Most Carried 9 | . 6 8 9 Average Carried 4 | . 4 4 8 Final Capacity 10 | 6 10 10 10 Final Carried 8 | 6 3 8 7 Class Distribution -------------------- 80% | Mutant 19% | Scavenger-Mutant Dominant Class ---------------- Mutant | -10/Materials Mutant | -10/Mines Scavenger-Mutant | -10/Exiles Resources | -11 -10 -10 -10 ----------- Run | Scr Mat Min Exi Matter Collected 355 | 200 110 45 . Remotely . | . . . . Salvage Created 628 | . 501 127 . Parts 21 | . 18 3 . Haulers Intercepted . | . . . . Recyclers Shooed . | . . . . Parts Field Recycled . | . . . . Retrieved Matter . | . . . . Parts Self-Destructed . | . . . . Prevented . | . . . . Kills | -11 -10 -10 -10 ------- Run | Scr Mat Min Exi Combat Hostiles Destroyed 14 | . 13 1 . Melee 5 | . 5 . . Guns 2 | . 2 . . Classes Destroyed 6 | . 5 1 . Worker 5 | . 5 . . Tunneler 1 | . . 1 . Operator 1 | . 1 . . Watcher 1 | . 1 . . Swarmer 6 | . 6 . . Grunt 8 | . 7 1 . Thug 1 | . . 1 . Best Kill Streak 4 | . 4 1 . Combat Bots Only 3 | . 3 1 . Max Kills in Single Turn 2 | . 2 1 . Gunslinging . | . . . . Exploded . | . . . . Melee 1 | . 1 . . Uniques/NPCs Destroyed . | . . . . Combat | -11 -10 -10 -10 -------- Run | Scr Mat Min Exi Damage Taken 1466 | . 901 215 350 Core 250 | . 143 30 77 Absorbed by Shields . | . . . . Core Remaining (%) 100 | 100 . . . Volleys Fired 5 | . 5 . . Largest 2 | . 2 . . Hottest 40 | . 40 . . Shots Fired 10 | . 10 . . Gun 10 | . 10 . . Cannon . | . . . . Launcher . | . . . . Special . | . . . . Kinetic 10 | . 10 . . Thermal . | . . . . Explosive . | . . . . Electromagnetic . | . . . . Robot Hit Streak 7 | . 7 . . Robot Miss Streak 1 | . 1 . . Penetration Max . | . . . . Secondary Targets 1 | . 1 . . Max Gunslinging Chain 1 | . 1 . . Shots Hit Robots 67 | . 54 10 3 Core Hits 13 | . 12 1 . Critical Hits . | . . . . Critical Kills . | . . . . Critical Parts Destroyed . | . . . . Melee Attacks 77 | . 61 13 3 Impact 74 | . 61 13 . Slashing 3 | . . . 3 Piercing . | . . . . Sneak Attacks 8 | . 5 2 1 Combat Hostiles . | . . . . Follow-up Attacks 1 | . . 1 . Damage Inflicted 2123 | . 1599 403 121 Guns 64 | . 64 . . Cannons . | . . . . Explosions . | . . . . Melee 2059 | . 1535 403 121 Ramming . | . . . . Kinetic 64 | . 64 . . Thermal . | . . . . Explosive . | . . . . Electromagnetic . | . . . . Impact 1938 | . 1535 403 . Slashing 121 | . . . 121 Piercing . | . . . . Highest Corruption 1 | . 1 1 1 Average Corruption 1 | . 1 1 1 Corruption Purged . | . . . . Effects 3 | . 1 1 1 Message Errors 2 | . . 1 1 Data Loss (minor) 1 | . 1 . . Overload Shots . | . . . . Overflow Damage 519 | . 456 63 . Projectiles 47 | . 47 . . Explosions . | . . . . Melee 472 | . 409 63 . Knockbacks 5 | . 5 . . Impact 4 | . 4 . . Kinetic . | . . . . Secondary 1 | . 1 . . Self-Inflicted Damage . | . . . . Shots . | . . . . Rammed . | . . . . Targets Rammed . | . . . . Kicked . | . . . . Crushed . | . . . . Highest Temperature . | . . . . Average Temperature . | . . . . Received Heat Transfer 519 | . 276 123 120 Siege Activations . | . . . . Robots Corrupted . | . . . . Combat Hostiles . | . . . . Parts Fried 12 | . 11 1 . Impact Corruptions 28 | . 24 4 . Robots Melted . | . . . . Combat Hostiles . | . . . . Parts Melted . | . . . . Heat Transferred . | . . . . Parts Sabotaged . | . . . . Parts Stolen . | . . . . Parts Stripped . | . . . . Power Chain Reactions . | . . . . Missiles Intercepted . | . . . . Alert | -11 -10 -10 -10 ------- Run | Scr Mat Min Exi Peak Influence 225 | . 225 65 . Initial 60 | . . 60 . Average 73 | . 85 54 . Maximum Alert Level 1 | . 1 . . Low Security (%) 98 | . 98 100 . Level 1 1 | . 1 . . Level 2 . | . . . . Level 3 . | . . . . Level 4 . | . . . . Level 5 . | . . . . High Security . | . . . . Max Security . | . . . . Squads Dispatched 2 | . 2 . . Investigation 1 | . 1 . . Extermination . | . . . . Reinforcement 1 | . 1 . . Assault . | . . . . Garrison . | . . . . Intercept . | . . . . Construction Impeded . | . . . . Haulers Reinforced . | . . . . Stealth | -11 -10 -10 -10 --------- Run | Scr Mat Min Exi Distress Signals . | . . . . Communications Jammed . | . . . . Distress Signals . | . . . . Times Spotted 31 | . 20 3 8 Peak Tracking Total 9 | . 3 2 9 Tactical Retreats 2 | . 1 1 . Traps | -11 -10 -10 -10 ------- Run | Scr Mat Min Exi Traps Triggered 1 | . 1 . . Indirectly . | . . . . Trap Hack Attempts . | . . . . Triggered . | . . . . Disarmed . | . . . . Reprogrammed . | . . . . Reused . | . . . . Traps Extracted . | . . . . Installed . | . . . . Triggered . | . . . . Machines | -11 -10 -10 -10 ---------- Run | Scr Mat Min Exi Machines Disabled . | . . . . Max in Single Turn . | . . . . Machines Sabotaged . | . . . . Garrisons Compromised . | . . . . Overloaded Fab Kills . | . . . . Fab Network Shutdowns . | . . . . Hacking | -11 -10 -10 -10 --------- Run | Scr Mat Min Exi Machines Accessed 4 | . 3 . 1 Terminals 2 | . 2 . . Fabricators . | . . . . Repair Stations . | . . . . Recycling Units 1 | . 1 . . Scanalyzers . | . . . . Garrison Access . | . . . . Total Hacks 8 | . 7 . 1 Successful 5 | . 4 . 1 Failed 3 | . 3 . . Catastrophic . | . . . . Database Lockouts . | . . . . Manual 5 | . 4 . 1 Terminals 6 | . 6 . . Fabricators . | . . . . Repair Stations . | . . . . Recycling Units 1 | . 1 . . Scanalyzers . | . . . . Garrison Access . | . . . . Terminal Hacks 4 | . 3 . 1 Branch Access Points 1 | . 1 . . Recall Investigation 1 | . 1 . . Zone Layout 1 | . 1 . . EX-Prototype ID Bank 1 | . . . 1 Fabricator Hacks . | . . . . Repair Station Hacks . | . . . . Recycling Unit Hacks . | . . . . Scanalyzer . | . . . . Garrison Access Hacks . | . . . . Unauthorized Hacks 1 | . 1 . . Terminals . | . . . . Fabricators . | . . . . Repair Stations . | . . . . Recycling Units 1 | . 1 . . Tunnel 1 | . 1 . . Scanalyzers . | . . . . Garrison Access . | . . . . Data Cores Recovered . | . . . . Used . | . . . . Hacking Detections 1 | . 1 . . Full Trace Events . | . . . . Feedback Events . | . . . . Feedback Blocked . | . . . . Robot Schematics Acquired . | . . . . Robots Built . | . . . . Matter . | . . . . Time . | . . . . Total Robot Build Rating . | . . . . Part Schematics Acquired . | . . . . Parts Built . | . . . . Matter . | . . . . Time . | . . . . Total Part Build Rating . | . . . . Parts Repaired . | . . . . Time . | . . . . Parts Recycled . | . . . . Recycled Matter . | . . . . Retrieved Matter . | . . . . Retrieved Components . | . . . . Parts Scanalyzed . | . . . . Part Schematics Acquired . | . . . . Parts Damaged . | . . . . Bothacking | -11 -10 -10 -10 ------------ Run | Scr Mat Min Exi Used RIF Installer . | . . . . Robots Hacked . | . . . . Non-combat . | . . . . Combat . | . . . . Robot Hacks Applied . | . . . . Relay Couplers Released . | . . . . Robots Rewired . | . . . . Allies Hacked . | . . . . Hacks Repelled . | . . . . Allies | -11 -10 -10 -10 -------- Run | Scr Mat Min Exi Total Allies . | . . . . Largest Group . | . . . . Highest-Rated Group . | . . . . Highest-Rated Ally . | . . . . Total Orders . | . . . . Ally Attacks . | . . . . Total Damage . | . . . . Kills . | . . . . Allies Corrupted . | . . . . Allies Melted . | . . . . Intel | -11 -10 -10 -10 ------- Run | Scr Mat Min Exi Robot Analysis Total . | . . . . Derelict Logs Recovered 1 | . . 1 . Drone Launches . | . . . . Drone Recoveries . | . . . . Exploration | -11 -10 -10 -10 ------------- Run | Scr Mat Min Exi Turns Passed 1809 | . 953 596 260 Spaces Moved 1050 | 1 529 355 165 Core . | . . . . Treads 158 | . 158 . . Legs 892 | 1 371 355 165 Wheels . | . . . . Hover . | . . . . Flight . | . . . . Fastest Speed 120 | 120 120 150 120 Average Speed 142 | 120 134 150 149 Slowest Speed 180 | 120 160 180 150 Overloaded Moves . | . . . . Propulsion Burnouts . | . . . . Robots Hopped . | . . . . Cave-ins Triggered . | . . . . Exploration Rate (%) 51 | 2 81 81 41 Regions Visited 3 Branch Regions 2 Pre-discovered Areas 1 | . 1 . . Known Exits Taken 1 | . 1 . . Unknown Exits Taken 2 | 1 . 1 . Scrap Searched 1 | . . 1 . Spaces Dug 1 | . 1 . . Terrain Destroyed 1 | . 1 . . Melee 1 | . 1 . . Projectile . | . . . . AOE . | . . . . Terrain Rammed . | . . . . Walls Destroyed . | . . . . Machines Disabled . | . . . . Actions | -11 -10 -10 -10 --------- Run | Scr Mat Min Exi Total 1207 | . 642 393 172 Wait 31 | . 17 13 1 Move 1047 | . 528 354 165 Hop . | . . . . Pick Up 19 | . 10 8 1 Fast Attach 1 | . 1 . . Attach 11 | . 7 3 1 Detach . | . . . . Swap 4 | . 2 2 . Drop 13 | . 11 1 1 Fire 5 | . 5 . . Melee 76 | . 61 12 3 Ram . | . . . . Kick . | . . . . Crush . | . . . . Escape Stasis . | . . . . Rewire . | . . . . Trap . | . . . . Miscellaneous . | . . . . Route ------- -11/Scrapyard -10/Materials (discovered 5 exits: [*Mat x3] / *Min x2) -10/Mines (discovered 3 exits: [*Mat x2] / *Exi) -10/Exiles History --------- Turn | Location | Event 1 | -11/Scrapyard | Discovered new exit (range 0) 1 | -11/Scrapyard | Entered Materials 145 | -10/Materials | Identified exit to Mines 226 | -10/Materials | Discovered new exit (range 6) 305 | -10/Materials | Build established: Mutant 414 | -10/Materials | Discovered new exit (range 3) 592 | -10/Materials | Discovered new exit (range 14) 834 | -10/Materials | Core integrity fell below 50% 954 | -10/Materials | Entered Mines 1190 | -10/Mines | A weapon hastily lodged in a ceiling crevice suddenly fell to the ground 1260 | -10/Mines | Discovered new exit (range 3) 1294 | -10/Mines | Learned location of 1 exit from Materials 1395 | -10/Mines | Discovered new exit (range 11) 1433 | -10/Mines | Joined a pair of Derelicts in attacking an 0b10 outpost 1544 | -10/Mines | Deemed a non-threat by the Exiles lab entrance 1544 | -10/Mines | Discovered new exit (range 5) 1550 | -10/Mines | Entered Exiles 1588 | -10/Exiles | Met 8R-AWN 1612 | -10/Exiles | Met EX-HEX 1652 | -10/Exiles | Met EX-BIN 1673 | -10/Exiles | Aligned with FarCom system 1675 | -10/Exiles | Given EX-Vault access code 1709 | -10/Exiles | Opened EX-Vault 1720 | -10/Exiles | Found Supersonic Drone Bay 1743 | -10/Exiles | Build established: Scavenger-Mutant 1755 | -10/Exiles | Warned to stay clear of 0b10 Research branches 1771 | -10/Exiles | Exiles lab attacked by MAIN.C 1800 | -10/Exiles | Attacked by the Exiles 1808 | -10/Exiles | Core integrity fell below 20% 1810 | -10/Exiles | Destroyed by 8R-AWN with 8R-AWN's Boregun Last Messages --------------- 01801_ HV Slug penetrates Machine. 01801_ Machine disabled. 01803_ Penetrated by HV Slug. 01803_ HV Slug penetrates Machine. 01803_ Penetrated by HV Slug. 01803_ HV Slug penetrates Machine. 01805_ Penetrated by HV Slug. 01805_ HV Slug penetrates Wall. 01805_ Penetrated by HV Slug. 01805_ Critical hit. 01805_ Aluminum Leg destroyed. 01805_ HV Slug penetrates Wall. 01806_ EXILES: Lab perimeter alert, evacuate immediately. 01806_ Machine disabled. 01807_ Lgt. Armor Plating destroyed. 01808_ Penetrated by HV Slug. 01808_ HV Slug penetrates Wall. 01808_ Penetrated by HV Slug. 01808_ HV Slug penetrates Wall. 01810_ Penetrated by HV Slug. Map ----- +----------------------------------------------------+ | ??????????#" """#?????????????????????? | | ??????????#" """#?????????????????????? | | ??????????#" """#?????????????????????? | | ??????????#" """#?????????????????????? | | ??????????#" """#?????????????????????? | | ??????????## """"?????????????????????? | | ???????????# """#?????????????????????? | | ???????????#" "X" """"?????????????????????? | | ???????????#" """ #?????????????????????? | | ???????????#" """""""""#?????????????????????? | | ??????????##" ###########?????????????????????? | | ?????????##"" #???????????????????????????????? | | ???????###"" #???????????????????????????????? | | ???????""""" ##??????????????????????????????? | | ??????" " "" ##???###########???????????????? | | ?????"" " #####"""""""""##??????????????? | | ???? " " """ """"##?????????????? | | ?? "" " #?????????????? | | ??? " """#?????????????? | | ??? "a"#???????????### | | ?? " "##?????????##" | | ??? ""###???????#" | | ??? """""" """#??????##" | | ??? ######""" "#????### | | ???? ""#?????#####""" ##???# | | ?????????????????##""" !g@ ##?## | | ??????????????????#""" aa ### | | ??????????????????#"" c ## | | ?????????????????#""" aa ### | | ????????????????"" a ""#?# | | ???????????????? #"""##?# | | ?????????????? ######??? | | ????????????? a ##???????? | | ????????????? " a ##????????? | | ???????????? "" """ ""#?????????? | | ????????????# ##""" " " #" "##?????????? | | ????????????? ???####""" """##"""""""##??????????? | | ?????????????????????##" ""#?#########???????????? | | ???????????????????????####??????????????????????? | | ?????????????????????????????????????????????????? | | ?????????????????????????????????????????????????? | | ?????????????????????????????????????????????????? | | ?????????????????????????????????????????????????? | | ?????????????????????????????????????????????????? | | ?????????????????????????????????????????????????? | | ?????????????????????????????????????????????????? | | ?????????????????????????????????????????????????? | | ?????????????????????????????????????????????????? | | ?????????????????????????????????????????????????? | | ?????????????????????????????????????????????????? | +----------------------------------------------------+ Best States ------------- Heat Dissipation 25 Energy Generation 10 Energy Capacity 250 Matter Stores 300 Matter Capacity 300 Sight Range 16 Terrain Scan Density 10 Armor Coverage 150 Evasion (%) 40 Recoil Reduction 2 Item Schematics ----------------- None Robot Schematics ------------------ None Fabricated ------------ Nothing Alien Tech Used ----------------- None Achievements -------------- None Challenges ------------ None Game ------ Seed BurstPhasingBlaster Manual? 0 Play Time 00:10:39 Cumulative 115.4 hours Start 2020.11.29 @ 22:43:01 End 2020.11.29 @ 22:52:40 Sessions 1 Manual Loads 0 Difficulty Rogue Special Mode Halloween2020/ForbiddenLore Game No. 116 Rogue 109 Adventurer 0 Explorer 7 Win Type - Total 1 Types 0/0/1/0/0/0/0/0/0 Lore% 55 Gallery% 82 Achievement% 64 Wizard Run 0 Options --------- ASCII 0 Keyboard 0 Movement Numpad Keybinds 0 Fullscreen 1 Font 18/X11 Map View 76x50 Tactical HUD 1 Map Filters NONE Filters NONE Steam 1 RUN: 53908d95-3c59-4f21-af90-677c5e0c566d